Cogmind - Beta 16 @@@ ROGUE MODE // 2025.10.29 @ 22:58:54 Player: Zish Result: Destroyed by H-61 Shepherd with Heavy Assault Cannon Performance ------------- Evolutions (3) 1500 Regions Visited (7) 1400 Robots Destroyed (13) 65 Value Destroyed (532) 532 Prototype IDs (25) 500 Alien Tech Used (0) 0 Bonus (833) 833 TOTAL SCORE: 4830 Bonus ------- Follower Combat Kills 33 Entered DSFs 500 Aligned with FarCom 300 Cogmind --------- Core Integrity 0/700 Matter 155/300 Energy 99/100 System Corruption 0% Temperature Cool (0) Movement Core (50) Location -7/DSF Parts ------- > --- POWER (2) -------- (None) > --- PROPULSION (4) --- (None) > --- UTILITY (5) ------ Improved Signal Interpreter > --- WEAPON (2) ------- (None) > --- INVENTORY (5) ---- Improved Deuterium Engine Gauss Cannon Peak State ------------ > --- POWER ------------ Nuclear Core Improved Deuterium Engine > --- PROPULSION ------- Xenon Bombardment Thruster Xenon Bombardment Thruster Xenon Bombardment Thruster Xenon Bombardment Thruster > --- UTILITY ---------- Scrap Suit Small Storage Unit Heavy Armor Plating > --- WEAPON ----------- Heavy Rocket Launcher Scythe > --- INVENTORY -------- Heavy Rocket Launcher [Rating: 45] Favorites ----------- Power Ion Engine Engine Ion Engine Power Core Light Nuclear Core Propulsion Aluminum Leg Leg Aluminum Leg Flight Unit Xenon Bombardment Thruster Utility Small Storage Unit Device ECM Suite Storage Small Storage Unit Processor Improved Signal Interpreter Protection Heavy Armor Plating Weapon Rocket Launcher Energy Gun Field Laser Ballistic Gun Assault Rifle Ballistic Cannon Light Cannon Launcher Rocket Launcher Slashing Weapon Scythe Build | -11 -10 -10 -10 -9 -8 -7 -7 ------- Run | Yrd Mat Min Exi Min Mat Fac DSF Slots Evolved 6 | . . . . . 4 2 . Power 1 | . . . . . 1 . . Propulsion 2 | . . . . . . 2 . Utility 3 | . . . . . 3 . . Weapon . | . . . . . . . . Parts Attached 26 | 6 1 1 . 1 7 4 6 Power 5 | 1 . . . . 1 2 1 Engine 3 | 1 . . . . . 1 1 Core 2 | . . . . . 1 1 . Reactor . | . . . . . . . . Propulsion 6 | 2 . . . . 2 2 . Treads . | . . . . . . . . Leg 2 | 2 . . . . . . . Wheel . | . . . . . . . . Hover . | . . . . . . . . Flight 4 | . . . . . 2 2 . Utility 7 | 1 1 . . . 3 . 2 Device 4 | . 1 . . . 2 . 1 Storage 1 | 1 . . . . . . . Processor 1 | . . . . . . . 1 Hackware . | . . . . . . . . Protection 1 | . . . . . 1 . . Artifact . | . . . . . . . . Weapon 8 | 2 . 1 . 1 1 . 3 Energy Gun 1 | 1 . . . . . . . Energy Cannon . | . . . . . . . . Ballistic Gun 1 | 1 . . . . . . . Ballistic Cannon 3 | . . . . 1 . . 2 Launcher 3 | . . 1 . . 1 . 1 Special Weapon . | . . . . . . . . Impact Weapon . | . . . . . . . . Slashing Weapon . | . . . . . . . . Piercing Weapon . | . . . . . . . . Special Melee Weapon . | . . . . . . . . Unidentified Prototypes . | . . . . . . . . Parts Lost 22 | . . . . . 8 . 14 Power 4 | . . . . . 2 . 2 Propulsion 6 | . . . . . 2 . 4 Utility 6 | . . . . . 2 . 4 Weapon 6 | . . . . . 2 . 4 Highest Loss Streak 6 | . . . . . 2 . 6 To Critical Strikes . | . . . . . . . . Average Backups 3 | 1 . 3 5 6 2 1 3 Power . | . . 1 1 1 . . 1 Propulsion . | . . 1 1 . 1 . . Utility 1 | . . . 2 3 . . . Weapon . | . . . 1 1 . 1 1 Tool/Special . | . . . . . . . . Unused Backups 3 | 1 . . . . 2 . . Power 1 | 1 . . . . . . . Propulsion 1 | . . . . . 1 . . Utility 1 | . . . . . 1 . . Weapon . | . . . . . . . . Tool/Special . | . . . . . . . . Average Slot Usage (%) 84 | . 98 100 100 99 75 74 55 Engine 9 | . 14 14 14 14 6 . 4 Core 3 | . . . . . 6 5 1 Leg 17 | . 28 28 28 28 12 . . Flight 2 | . . . . . . 29 14 Device 15 | . 12 14 14 14 20 7 6 Storage 10 | . 14 14 14 14 9 7 6 Protection 1 | . . . . . 2 7 1 Energy Gun 2 | . 14 . . . 2 . . Ballistic Gun 6 | . 14 14 14 13 . . . Ballistic Cannon 2 | . . . . . 6 . 2 Launcher 8 | . . 13 14 14 6 7 2 Slashing Weapon 1 | . . . . . 2 7 6 Peak Build Rating 45 | 6 7 9 10 10 31 45 43 Average Rating 18 | 3 6 8 9 9 25 41 25 On Entrance 14 | . 6 7 9 10 10 31 42 Avg Prop Armor Cover (%) . | . . . . . . . . Naked Turns . | . . . . . . . . Heaviest Build 40 | 14 16 18 18 19 39 40 40 Greatest Support 24 | 20 20 20 20 20 20 24 24 Greatest Overweight (x) 9 | . . . . . 9 1 4 Average Overweight (x) . | . . . . . 2 1 1 Largest Inventory Capacity 8 | 8 8 8 8 8 8 8 8 Average Capacity 7 | 5 8 8 8 8 8 8 7 Most Carried 8 | 5 2 5 8 8 8 4 6 Average Carried 4 | 1 . 3 6 7 3 1 2 Final Capacity 8 | 8 8 8 8 8 8 8 5 Final Carried 8 | . 2 5 8 7 4 4 2 Scrap Suit Usage (%) 33 | . . . . . 70 61 15 Parts Cannibalized 2 | . . . . . 1 . 1 Class Distribution -------------------- 93% | Mutant 6% | Assassin Dominant Class ---------------- Mutant | -10/Materials Mutant | -10/Mines Mutant | -10/Exiles Mutant | -9/Mines Mutant | -8/Materials Mutant | -7/Factory Assassin | -7/DSF Resources | -11 -10 -10 -10 -9 -8 -7 -7 ----------- Run | Yrd Mat Min Exi Min Mat Fac DSF Matter Collected 702 | 250 77 38 . 29 155 . 153 Remotely . | . . . . . . . . Salvage Created 641 | . 291 40 . . 141 . 169 Parts 29 | . 11 1 . . 5 . 12 Haulers Intercepted . | . . . . . . . . Recyclers Shooed . | . . . . . . . . Parts Field Recycled . | . . . . . . . . Retrieved Matter . | . . . . . . . . Parts Self-Destructed . | . . . . . . . . Prevented . | . . . . . . . . Parts Restored . | . . . . . . . . Kills | -11 -10 -10 -10 -9 -8 -7 -7 ------- Run | Yrd Mat Min Exi Min Mat Fac DSF Combat Hostiles Destroyed 9 | . 2 2 . . 2 . 3 Melee 2 | . . . . . . . 2 Guns 3 | . 2 1 . . . . . Cannons 1 | . . . . . 1 . . AOE 3 | . . 1 . . 1 . 1 Classes Destroyed 6 | . 3 . . . 2 . 1 Worker 1 | . . . . . 1 . . Recycler 2 | . 1 . . . 1 . . Watcher 1 | . 1 . . . . . . Grunt 4 | . 2 2 . . . . . Sentry 2 | . . . . . 2 . . Specialist 3 | . . . . . . . 3 Best Kill Streak 3 | . 2 2 . . 3 . 1 Combat Bots Only 2 | . 2 2 . . 1 . 1 Max Kills in Single Turn 1 | . 1 1 . . 1 . 1 Gunslinging . | . . . . . . . . Exploded 1 | . . 1 . . 1 . 1 Melee 1 | . . . . . . . 1 Uniques/NPCs Destroyed . | . . . . . . . . Combat | -11 -10 -10 -10 -9 -8 -7 -7 -------- Run | Yrd Mat Min Exi Min Mat Fac DSF Hostile Shots Fired 226 | . 15 4 . . 108 . 99 Missed 54 | . 5 2 . . 26 . 21 Hits 172 | . 10 2 . . 82 . 78 Projectile 172 | . 10 2 . . 82 . 78 Critical Strikes 4 | . . . . . 1 . 3 Damage Taken 3227 | . 122 31 . . 1327 . 1747 Core 889 | . 27 . . . 142 . 720 Absorbed by Shields . | . . . . . . . . Regen/Repaired (Parts) 15 | . . . . . 5 . 10 Core Remaining (%) 87 | 100 . . . 89 74 . . Volleys Fired 64 | . 19 8 . . 25 . 12 Largest 2 | . 2 2 . . 2 . 1 Hottest 70 | . 70 53 . . 63 . 40 Shots Fired 95 | . 38 11 . . 34 . 12 Gun 51 | . 38 8 . . 5 . . Cannon 18 | . . . . . 16 . 2 Launcher 26 | . . 3 . . 13 . 10 Special . | . . . . . . . . Kinetic 45 | . 19 8 . . 16 . 2 Thermal 24 | . 19 . . . 5 . . Explosive 26 | . . 3 . . 13 . 10 Electromagnetic . | . . . . . . . . Robot Hit Streak 7 | . 6 4 . . 7 . 4 Robot Miss Streak 3 | . 2 1 . . 3 . 1 Penetration Max . | . . . . . . . . Secondary Targets . | . . . . . . . . Shots Hit Robots 67 | . 20 7 . . 19 . 21 Core Hits 33 | . 10 5 . . 6 . 12 Critical Kills . | . . . . . . . . Critical Parts Destroyed . | . . . . . . . . Critical Strikes 4 | . . . . . 2 . 2 Blast 1 | . . . . . 1 . . Sever 3 | . . . . . 1 . 2 Melee Attacks 24 | . . . . . 5 1 18 Impact . | . . . . . . . . Slashing 24 | . . . . . 5 1 18 Piercing . | . . . . . . . . Sneak Attacks 1 | . . . . . . . 1 Combat Hostiles . | . . . . . . . . Follow-up Attacks . | . . . . . . . . Damage Inflicted 2244 | . 259 258 . . 456 . 1271 Guns 335 | . 254 45 . . 36 . . Cannons 159 | . . . . . 134 . 25 Explosions 1121 | . . 213 . . 225 . 683 Melee 623 | . . . . . 61 . 562 Ramming 6 | . 5 . . . . . 1 Kinetic 344 | . 140 45 . . 134 . 25 Thermal 150 | . 114 . . . 36 . . Explosive 1121 | . . 213 . . 225 . 683 Electromagnetic . | . . . . . . . . Impact . | . . . . . . . . Slashing 623 | . . . . . 61 . 562 Piercing . | . . . . . . . . Highest Corruption 4 | . . . . . 4 . . Average Corruption 4 | . . . . . 4 . . Corruption Purged . | . . . . . . . . Corruption Blocked . | . . . . . . . . Effects 15 | . . . . . 15 . . Message Errors 2 | . . . . . 2 . . Matter Fused 3 | . . . . . 3 . . Heat Flow Errors 2 | . . . . . 2 . . Energy Discharges 2 | . . . . . 2 . . Parts Fused 1 | . . . . . 1 . . Data Loss (minor) 3 | . . . . . 3 . . Alerts 1 | . . . . . 1 . . Weapon Failures 1 | . . . . . 1 . . Overload Shots . | . . . . . . . . Overflow Damage 106 | . . 51 . . 7 . 48 Projectiles . | . . . . . . . . Explosions 68 | . . 51 . . 7 . 10 Melee 38 | . . . . . . . 38 Knockbacks 1 | . 1 . . . . . . Impact 1 | . 1 . . . . . . Kinetic . | . . . . . . . . Secondary . | . . . . . . . . Self-Inflicted Damage 290 | . . . . . 222 . 68 Shots 8 | . . . . . 6 . 2 Rammed 1 | . . . . . . . 1 Targets Rammed 2 | . 1 . . . . . 1 Kicked 1 | . 1 . . . . . . Crushed . | . . . . . . . . Highest Temperature 142 | . 74 9 . . 142 . . Average Temperature 28 | . 25 5 . . 32 . . Received Heat Transfer 501 | . 69 18 . . 45 . 369 Siege Activations . | . . . . . . . . Martial Activations . | . . . . . . . . Shielding Activations . | . . . . . . . . Robots Disrupted . | . . . . . . . . Combat Hostiles . | . . . . . . . . Robots Corrupted . | . . . . . . . . Combat Hostiles . | . . . . . . . . Parts Fried . | . . . . . . . . Impact Corruptions . | . . . . . . . . Robots Melted . | . . . . . . . . Combat Hostiles . | . . . . . . . . Parts Melted . | . . . . . . . . Heat Transferred 407 | . 333 . . . 74 . . Parts Sabotaged . | . . . . . . . . Parts Stolen . | . . . . . . . . Parts Stripped . | . . . . . . . . Power Chain Reactions . | . . . . . . . . Alert | -11 -10 -10 -10 -9 -8 -7 -7 ------- Run | Yrd Mat Min Exi Min Mat Fac DSF Maximum Alert Level . | . . . . . . . . Low Security (%) 100 | 100 100 100 . 100 100 100 100 Level 1 . | . . . . . . . . Level 2 . | . . . . . . . . Level 3 . | . . . . . . . . Level 4 . | . . . . . . . . Level 5 . | . . . . . . . . High Security . | . . . . . . . . Max Security . | . . . . . . . . Peak Influence 102 | . 50 62 . . 102 15 102 Initial 7 | . . 7 . . . . 3 Average 17 | . 8 9 . . 16 2 62 Influence Increases 606 | . 68 72 . . 282 15 169 Destroy 0b10 Robot/C 200 | . 40 40 . . 60 . 60 Destroy 0b10 Robot/NC 35 | . 15 . . . 10 . 10 Destroy Leader 62 | . 12 10 . . 30 . 10 Allied During Kill 2 | . . . . . 2 . . Successful Hack 2 | . . . . . 2 . . Disable Machine 90 | . . 15 . . 60 15 . Destroy Structure 185 | . 1 7 . . 103 . 74 Lose Combat Pursuer 30 | . . . . . 15 . 15 Influence Decreases 574 | . 48 40 52 . 282 10 142 Entered New Map 67 | . . 13 52 . . . 2 Time Decay 306 | . 48 27 . . 221 10 . Lost Part 201 | . . . . . 61 . 140 Squads Dispatched 7 | . 2 . . . 2 . 3 Investigation 1 | . 1 . . . . . . Extermination . | . . . . . . . . Reinforcement 6 | . 1 . . . 2 . 3 Assault . | . . . . . . . . Garrison . | . . . . . . . . Intercept . | . . . . . . . . Searches Triggered . | . . . . . . . . Construction Impeded 1 | . . . . . 1 . . Haulers Reinforced . | . . . . . . . . Active Scanning Responses . | . . . . . . . . Cargo Convoy Interrupts . | . . . . . . . . Stealth | -11 -10 -10 -10 -9 -8 -7 -7 --------- Run | Yrd Mat Min Exi Min Mat Fac DSF Distress Signals 1 | . . . . . 1 . . Communications Jammed . | . . . . . . . . Distress Signals . | . . . . . . . . Times Spotted 31 | . 6 2 . . 6 . 17 Peak Tracking Total 13 | . 4 2 . . 3 . 13 Tactical Retreats 4 | . 1 1 . . 1 . 1 ECM-based Alert Blocks 2 | . 1 1 . . . . . Traps | -11 -10 -10 -10 -9 -8 -7 -7 ------- Run | Yrd Mat Min Exi Min Mat Fac DSF Traps Triggered 1 | . 1 . . . . . . Indirectly . | . . . . . . . . Trap Hack Attempts . | . . . . . . . . Triggered . | . . . . . . . . Disarmed . | . . . . . . . . Reprogrammed . | . . . . . . . . Reused . | . . . . . . . . Traps Extracted . | . . . . . . . . Installed . | . . . . . . . . Triggered . | . . . . . . . . Machines | -11 -10 -10 -10 -9 -8 -7 -7 ---------- Run | Yrd Mat Min Exi Min Mat Fac DSF Machines Disabled 6 | . . 1 . . 4 1 . Max in Single Turn 1 | . . 1 . . 1 1 . Machines Repaired . | . . . . . . . . Machines Dismantled . | . . . . . . . . Machines Sabotaged . | . . . . . . . . Overloaded Fab Kills . | . . . . . . . . Hacking | -11 -10 -10 -10 -9 -8 -7 -7 --------- Run | Yrd Mat Min Exi Min Mat Fac DSF Machines Accessed 5 | . 1 . 1 . 1 2 . Terminals 3 | . 1 . . . . 2 . Fabricators . | . . . . . . . . Repair Stations 1 | . . . . . 1 . . Recycling Units . | . . . . . . . . Scanalyzers . | . . . . . . . . Garrison Access . | . . . . . . . . Total Hacks 7 | . 3 . 1 . 1 2 . Successful 5 | . 1 . 1 . 1 2 . Failed 2 | . 2 . . . . . . Catastrophic . | . . . . . . . . Database Lockouts . | . . . . . . . . Manual 2 | . . . 1 1 . . . Terminals 5 | . 3 . . . . 2 . Fabricators . | . . . . . . . . Repair Stations 1 | . . . . . 1 . . Recycling Units . | . . . . . . . . Scanalyzers . | . . . . . . . . Garrison Access . | . . . . . . . . Terminal Hacks 4 | . 1 . 1 . . 2 . Prototype ID Bank 1 | . 1 . . . . . . Open DSF 1 | . . . . . . 1 . Locate Traps 1 | . . . . . . 1 . Proto ID Catalog 1 | . . . 1 . . . . Fabricator Hacks . | . . . . . . . . Repair Station Hacks 1 | . . . . . 1 . . Scan Component 1 | . . . . . 1 . . Recycling Unit Hacks . | . . . . . . . . Scanalyzer . | . . . . . . . . Garrison Access Hacks . | . . . . . . . . Unauthorized Hacks . | . . . . . . . . Terminals . | . . . . . . . . Fabricators . | . . . . . . . . Repair Stations . | . . . . . . . . Recycling Units . | . . . . . . . . Scanalyzers . | . . . . . . . . Garrison Access . | . . . . . . . . Data Cores Recovered . | . . . . . . . . Used . | . . . . . . . . Hacking Detections 2 | . 1 . . . . 1 . Full Trace Events 1 | . 1 . . . . . . Feedback Events . | . . . . . . . . Feedback Blocked . | . . . . . . . . Robot Schematics Acquired . | . . . . . . . . Robots Built . | . . . . . . . . Authchips . | . . . . . . . . Time . | . . . . . . . . Total Robot Build Rating . | . . . . . . . . Part Schematics Acquired . | . . . . . . . . Parts Built . | . . . . . . . . Authchips . | . . . . . . . . Time . | . . . . . . . . Total Part Build Rating . | . . . . . . . . Part Studies Acquired . | . . . . . . . . Parts Repaired . | . . . . . . . . Time . | . . . . . . . . Parts Recycled . | . . . . . . . . Recycled Matter . | . . . . . . . . Retrieved Matter . | . . . . . . . . Retrieved Components . | . . . . . . . . Parts Scanalyzed . | . . . . . . . . Part Schematics Acquired . | . . . . . . . . Parts Damaged . | . . . . . . . . Bothacking | -11 -10 -10 -10 -9 -8 -7 -7 ------------ Run | Yrd Mat Min Exi Min Mat Fac DSF Used RIF Installer . | . . . . . . . . Robots Hacked . | . . . . . . . . Non-combat . | . . . . . . . . Combat . | . . . . . . . . Robot Hacks Applied . | . . . . . . . . Relay Couplers Released . | . . . . . . . . Fabnet Peak Effective % . | . . . . . . . . Robots Rewired . | . . . . . . . . Allies Hacked . | . . . . . . . . Hacks Repelled . | . . . . . . . . Allies | -11 -10 -10 -10 -9 -8 -7 -7 -------- Run | Yrd Mat Min Exi Min Mat Fac DSF Total Allies 1 | . . . . 1 . . . Largest Group 1 | . . . . 1 1 . . Highest-Rated Group 31 | . . . . 31 31 . . Highest-Rated Ally 31 | . . . . 31 31 . . Total Orders . | . . . . . . . . Ally Attacks 4 | . . . . . 4 . . Total Damage 65 | . . . . . 65 . . Kills 1 | . . . . . 1 . . Allies Corrupted . | . . . . . . . . Allies Melted . | . . . . . . . . Intel | -11 -10 -10 -10 -9 -8 -7 -7 ------- Run | Yrd Mat Min Exi Min Mat Fac DSF Active Infowar (turns) 2550 | . 244 293 725 208 865 . 215 Sensors 215 | . . . . . . . 215 ECM 2335 | . 244 293 725 208 865 . . Robot Analysis Total . | . . . . . . . . Derelict Logs Recovered . | . . . . . . . . Drone Launches . | . . . . . . . . Drone Recoveries . | . . . . . . . . Exploration | -11 -10 -10 -10 -9 -8 -7 -7 ------------- Run | Yrd Mat Min Exi Min Mat Fac DSF Turns Passed 3384 | 53 269 293 725 208 1439 120 277 Spaces Moved 1966 | 48 172 225 602 163 522 92 142 Core 111 | 22 . . . . 53 . 36 Treads . | . . . . . . . . Legs 1639 | 26 172 225 602 163 451 . . Wheels . | . . . . . . . . Hover . | . . . . . . . . Flight 216 | . . . . . 18 92 106 Fastest Speed 31 | 50 120 120 120 120 190 111 31 Average Speed 151 | 87 120 120 120 120 236 111 138 Slowest Speed 500 | 120 120 120 120 120 500 111 360 Overloaded Moves . | . . . . . . . . Propulsion Burnouts . | . . . . . . . . Robots Hopped . | . . . . . . . . Potential Cave-ins . | . . . . . . . . Cave-ins Triggered 1 | . . . . . 1 . . Exploration Rate (%) 37 | 3 28 41 91 33 32 2 71 Regions Visited 7 Branch Regions 3 Pre-discovered Areas 1 | . . 1 . . . . . Known Exits Taken 1 | . . . . . . 1 . Unknown Exits Taken 6 | 1 1 1 1 1 1 . . Scrap Searched 3 | . . 1 . 2 . . . Spaces Dug 30 | . . . . . 30 . . Terrain Destroyed 237 | . . 17 . . 129 . 91 Melee 1 | . . . . . 1 . . Projectile . | . . . . . . . . AOE 236 | . . 17 . . 128 . 91 Terrain Rammed . | . . . . . . . . Walls Destroyed . | . . . . . . . . Machines Disabled . | . . . . . . . . Actions | -11 -10 -10 -10 -9 -8 -7 -7 --------- Run | Yrd Mat Min Exi Min Mat Fac DSF Total 2253 | 61 196 237 604 177 688 108 182 Wait 137 | . 1 . . 9 119 8 . Move 1959 | 47 171 224 601 162 521 91 142 Hop . | . . . . . . . . Pick Up 31 | 7 3 3 2 2 8 3 3 Fast Attach . | . . . . . . . . Attach 25 | 6 1 1 . 1 7 4 5 Detach 1 | . . . . . . 1 . Swap 1 | . . . . . . . 1 Drop 8 | 1 . 1 . 3 3 . . Fire 64 | . 19 8 . . 25 . 12 Melee 24 | . . . . . 5 1 18 Ram 1 | . . . . . . . 1 Kick 1 | . 1 . . . . . . Crush . | . . . . . . . . Escape Stasis . | . . . . . . . . Rewire 1 | . . . 1 . . . . Trap . | . . . . . . . . Miscellaneous . | . . . . . . . . Route ------- -11/Scrapyard -10/Materials -10/Mines -10/Exiles (discovered 2 exits: *Min x2) -9/Mines -8/Materials -7/Factory -7/DSF History --------- Turn | Location | Event 14 | -11/Scrapyard | Discovered new exit (range 14) 54 | -11/Scrapyard | Entered Materials 164 | -10/Materials | Discovered new exit (range 6) 309 | -10/Materials | Build established: Mutant 323 | -10/Materials | Entered Mines 330 | -10/Mines | Received a Rocket Launcher from a helpful Derelict 466 | -10/Mines | Learned location of Storage (-8) 533 | -10/Mines | Found a Scrap Suit stashed away for nefarious purposes 538 | -10/Mines | Found Scrap Suit 607 | -10/Mines | Deemed a non-threat by the Exiles lab entrance 609 | -10/Mines | Discovered new exit (range 5) 616 | -10/Mines | Entered Exiles 645 | -10/Exiles | Met 8R-AWN 666 | -10/Exiles | Met EX-HEX 709 | -10/Exiles | Met EX-BIN 729 | -10/Exiles | Aligned with FarCom system 730 | -10/Exiles | Given EX-Vault access code 769 | -10/Exiles | Opened EX-Vault 783 | -10/Exiles | Found PSU Rigger 808 | -10/Exiles | Warned to stay clear of 0b10 Research branches 843 | -10/Exiles | Met EX-DEC 930 | -10/Exiles | Visited The Gauntlet 1176 | -10/Exiles | Discovered new exit (range 14) 1320 | -10/Exiles | Discovered new exit (range 15) 1341 | -10/Exiles | Left Exiles lab with PSU Rigger 1341 | -10/Exiles | Entered Mines 1527 | -9/Mines | Discovered new exit (range 11) 1530 | -9/Mines | Received a Mining Laser from a helpful Derelict 1549 | -9/Mines | Entered Materials 1549 | -8/Materials | Accompanied by 1 ally 1549 | -8/Materials | Evolved 4 slots: Power x1, Utility x3 2414 | -8/Materials | Crushed by falling debris 2877 | -8/Materials | Discovered new exit (range 5) 2988 | -8/Materials | Entered Factory 2988 | -7/Factory | Evolved 2 slots: Propulsion x2 3081 | -7/Factory | Identified exit to DSF 3108 | -7/Factory | Entered DSF 3152 | -7/DSF | Additional patrols routed to DSF 3200 | -7/DSF | Lost 5 parts (1p1n2u1w) 3256 | -7/DSF | Lost 3 parts (2n1w) 3366 | -7/DSF | Core integrity fell below 50% 3384 | -7/DSF | Core integrity fell below 20% 3385 | -7/DSF | Destroyed by H-61 Shepherd with Heavy Assault Cannon Last Messages --------------- 03361_ Slug penetrates Wall. 03361_ Scythe destroyed. 03363_ Slammed into X-62 Marksman. 03364_ Penetrated by Slug. 03364_ Gauss Cannon destroyed. 03364_ Acquired 1 matter. 03367_ Slug penetrates Wall. 03367_ Penetrated by Slug. 03367_ Imp. Sensor Array destroyed. 03367_ Xenon Bombardment Thruster destroyed. 03374_ C-30 ARC bursts open, deploying its payload. 03374_ B-48 Gladiator unfolds itself. 03374_ G-47 Trooper unfolds itself. 03380_ C-30 ARC bursts open, deploying its payload. 03380_ S-27 Virus unfolds itself. 03380_ Critical hit (Burn: +37). 03381_ Slug penetrates Wall. 03383_ Knocked back. Map ----- +----------------------------------------------------+ | ???## [[# # !!!||#????????????????????? | | ???# #????????????????????? | | ???# ! #????????????????????? | | ??# [= [[ [[[### ###????????????????????? | | ??## ## ##[[ [[[#?? #??????????????????????? | | ??#### ## ## # ###??? ?????????????????????? | | ???????# ]## ##????? #????????????????????? | | ???????# ]#####??????? #????????????????????? | | ???????##[ ###????????? ###????????????????????? | | ???????# [[#????????! !??????????????????????? | | ???????# [[#????????! !!?????????????????????? | | ??????## [[###? ##!! ?!?????????????????????? | | ?????## ## ### # ?##????????????????????? | | ?????##!! #"]]] ## ##?????????????????????? | | ?????# !! "]]] % ##????????????????????? | | ?????# a?????????????????????? | | ?????#" x ?????????????????????? | | ?????#" % x g = ?????????????????????? | | ?????## # #]]]# ! #?????????????????????? | | ??????# ##!! #]]g# H a#?????????????????????? | | ??????### ######? # ## ##????????????????????? | | ???????#! !!#??????# !!#????????????????????? | | ???????#! !!#??????# ! !!#????????????????????? | | ???????#! !!#??????#!! !!#????????????????????? | | ???????## ###??????##; ###????????????????????? | | ???????# #??????#[[ @ %#????????????????????? | | ???????# #??????#[[ #????????????????????? | | ???????## ##########[[ ss #????????????????????? | | ??????### ###!!# ##; ###????????????????????? | | ????###"" ##!!# ###ss ###===#????????????????? | | ????""""" "gb %" ???????????? | | ????"##"" "gg " ???????????? | | ??????#"""""##!!# #!! [[# # ##"???????????? | | ??????#"""""#########!! [[#?###????????????????? | | ??????####"##???????#########????????????????????? | | ?????????#"#?????????????????????????????????????? | | ?????????""#?????????????????????????????????????? | | ?????????????????????????????????????????????????? | | ?????????????????????????????????????????????????? | | ?????????????????????????????????????????????????? | | ?????????????????????????????????????????????????? | | ?????????????????????????????????????????????????? | | | | | | | | | | | | | | | | | +----------------------------------------------------+ Best States ------------- Heat Dissipation 34 Energy Generation 19 Energy Capacity 310 Matter Stores 300 Matter Capacity 300 Sight Range 16 Robot Scan Range 15 Terrain Scan Density 10 ECM Strength 1 Armor Coverage 600 Evasion (%) 63 Item Schematics ----------------- None Robot Schematics ------------------ None Fabricated ------------ Nothing Repaired ---------- Nothing Studied --------- None Alien Tech Used ----------------- None Achievements -------------- None Challenges ------------ None Game ------ Seed AblativeAssaultArchive Manual? 0 Play Time 00:27:10 Cumulative 16.2 hours Start 2025.10.29 @ 22:33:04 End 2025.10.29 @ 22:58:54 Sessions 1 Manual Loads 0 Difficulty Rogue Special Mode None Game No. 39 Rogue 39 Adventurer 0 Explorer 0 Win Type - Total 0 Types 0/0/0/0/0/0/0/0/0/0 Lore% 9 Gallery% 20 Achievement% 14 Wizard Run 0 Options --------- Layout 1 ASCII 0 Keyboard 0 Movement Arrows Keybinds 0 Fullscreen 1 Font 24/Smallcaps Map View 50x35 Zoom Use 0% Tactical HUD 1 Map Filters NONE Filters NONE Steam 1 RUN: ab16275f-c837-4d6f-92b0-d69b05c71d99